Cogmind - Beta 15 @@@ ROGUE MODE // 2025.09.01 @ 16:06:16 Player: Sasha Result: Self-destructed Performance ------------- Evolutions (1) 500 Regions Visited (3) 600 Robots Destroyed (26) 130 Value Destroyed (863) 863 Prototype IDs (1) 20 Alien Tech Used (0) 0 Bonus (0) 0 TOTAL SCORE: 2113 Bonus ------- None Cogmind --------- Core Integrity 355/400 Matter 273/300 Energy 290/290 System Corruption 0% Temperature Warm (126) Movement Walking (330) Ox3 Location -9/Mines Parts ------- > --- POWER (2) -------- Light Ion Engine Improved Ion Engine > --- PROPULSION (2) --- Aluminum Leg > --- UTILITY (3) ------ Small Storage Unit ECM Suite Hardened Medium Armor Plating > --- WEAPON (2) ------- Improved Assault Rifle Assault Cannon > --- INVENTORY (8) ---- Hardened Medium Armor Plating Hardened Medium Armor Plating Hardlight Generator Peak State ------------ > --- POWER ------------ Ion Engine > --- PROPULSION ------- Aluminum Leg Aluminum Leg > --- UTILITY ---------- Small Storage Unit Hardened Medium Armor Plating Hardened Medium Armor Plating > --- WEAPON ----------- Assault Cannon Assault Cannon > --- INVENTORY -------- Light Treads Light Treads Power Shielding Hardened Medium Armor Plating Hardened Medium Armor Plating Medium Laser Assault Cannon Grenade Launcher [Rating: 17] Favorites ----------- Power Ion Engine Engine Ion Engine Propulsion Aluminum Leg Leg Aluminum Leg Utility Small Storage Unit Device ECM Suite Storage Small Storage Unit Protection Hardened Medium Armor Plating Weapon Improved Assault Rifle Energy Gun Medium Laser Ballistic Gun Improved Assault Rifle Ballistic Cannon Assault Cannon Launcher Grenade Launcher Special Melee Weapon Datajack Build | -11 -10 -9 -9 ------- Run | Yrd Mat Mat Min Slots Evolved 2 | . . 2 . Power 1 | . . 1 . Propulsion . | . . . . Utility 1 | . . 1 . Weapon . | . . . . Parts Attached 32 | 5 6 20 1 Power 7 | 1 1 4 1 Engine 7 | 1 1 4 1 Core . | . . . . Reactor . | . . . . Propulsion 10 | 2 2 6 . Treads . | . . . . Leg 10 | 2 2 6 . Wheel . | . . . . Hover . | . . . . Flight . | . . . . Utility 5 | 1 1 3 . Device 1 | . . 1 . Storage 1 | 1 . . . Processor . | . . . . Hackware . | . . . . Protection 3 | . 1 2 . Artifact . | . . . . Weapon 10 | 1 2 7 . Energy Gun 2 | 1 1 . . Energy Cannon . | . . . . Ballistic Gun 3 | . . 3 . Ballistic Cannon 2 | . . 2 . Launcher 2 | . 1 1 . Special Weapon . | . . . . Impact Weapon . | . . . . Slashing Weapon . | . . . . Piercing Weapon . | . . . . Special Melee Weapon 1 | . . 1 . Unidentified Prototypes 1 | . . 1 . Parts Lost 4 | . 2 . 2 Power 1 | . 1 . . Propulsion 1 | . . . 1 Utility . | . . . . Weapon 2 | . 1 . 1 Highest Loss Streak 1 | . 1 . 1 To Critical Strikes . | . . . . Average Backups 5 | 2 4 7 3 Power . | . . . . Propulsion 1 | 1 2 1 . Utility 2 | . . 2 3 Weapon 1 | . . 2 . Tool/Special . | . . . . Unused Backups 8 | . 1 4 3 Power . | . . . . Propulsion 2 | . . 2 . Utility 5 | . 1 1 3 Weapon 1 | . . 1 . Tool/Special . | . . . . Average Slot Usage (%) 97 | . 95 97 99 Engine 18 | . 13 19 22 Leg 23 | . 28 22 22 Device 7 | . . 9 11 Storage 11 | . 14 11 11 Protection 11 | . 10 12 11 Energy Gun 5 | . 19 . . Ballistic Gun 8 | . . 11 11 Ballistic Cannon 5 | . . 7 3 Launcher 2 | . 8 1 . Special Melee Weapon 1 | . . 1 7 Peak Build Rating 17 | 5 7 17 17 Average Rating 12 | 3 6 15 15 On Entrance 6 | . 5 7 15 Naked Turns . | . . . . Heaviest Build 36 | 10 16 36 35 Greatest Support 23 | 20 20 23 20 Greatest Overweight (x) 1 | 1 . 1 1 Average Overweight (x) . | . . . 1 Largest Inventory Capacity 8 | 8 8 8 8 Average Capacity 7 | 6 8 8 8 Most Carried 8 | 3 5 8 5 Average Carried 5 | 2 4 7 3 Final Capacity 8 | 8 8 8 8 Final Carried 6 | 3 2 6 3 Class Distribution -------------------- 56% | Mutant 43% | Scavenger-Mutant Dominant Class ---------------- Mutant | -10/Materials Scavenger-Mutant | -9/Materials Scavenger-Mutant | -9/Mines Resources | -11 -10 -9 -9 ----------- Run | Yrd Mat Mat Min Matter Collected 984 | 205 156 577 46 Remotely . | . . . . Salvage Created 855 | . 193 591 71 Parts 47 | . 7 31 9 Haulers Intercepted . | . . . . Recyclers Shooed 3 | . 1 2 . Parts Field Recycled . | . . . . Retrieved Matter . | . . . . Parts Self-Destructed . | . . . . Prevented . | . . . . Kills | -11 -10 -9 -9 ------- Run | Yrd Mat Mat Min Combat Hostiles Destroyed 24 | . 4 15 5 Guns 11 | . 2 5 4 Cannons 8 | . . 7 1 AOE 4 | . 1 3 . Classes Destroyed 7 | . 2 3 2 Worker 1 | . . 1 . Recycler 1 | . . 1 . Watcher 2 | . 1 1 . Swarmer 3 | . . . 3 Grunt 16 | . 4 12 . Sentry 3 | . . 3 . Assembled 2 | . . . 2 Best Kill Streak 5 | . 2 5 3 Combat Bots Only 3 | . 2 3 3 Max Kills in Single Turn 2 | . 1 2 1 Gunslinging . | . . . . Exploded 2 | . 1 2 . Melee . | . . . . Uniques/NPCs Destroyed . | . . . . Combat | -11 -10 -9 -9 -------- Run | Yrd Mat Mat Min Hostile Shots Fired 134 | . 36 71 27 Missed 38 | . 5 22 11 Hits 96 | . 31 49 16 Melee 2 | . . . 2 Projectile 94 | . 31 49 14 Critical Strikes 4 | . 2 2 . Actively Blocked 1 | . 1 . . Part Disruptions 2 | . . 1 1 Damage Taken 1329 | . 435 687 207 Core 127 | . 82 45 . Absorbed by Shields . | . . . . Redirected to Shielding 20 | . 20 . . Regen/Repaired (Parts) 11 | . . 11 . Core Remaining (%) 83 | 100 67 . . Volleys Fired 81 | . 18 52 11 Largest 2 | . 2 2 2 Hottest 100 | . 100 67 60 Shots Fired 136 | . 36 87 13 Gun 102 | . 34 57 11 Cannon 26 | . . 24 2 Launcher 8 | . 2 6 . Special . | . . . . Kinetic 94 | . . 81 13 Thermal 34 | . 34 . . Explosive 8 | . 2 6 . Electromagnetic . | . . . . Robot Hit Streak 7 | . 6 7 3 Robot Miss Streak 5 | . 3 5 3 Penetration Max . | . . . . Secondary Targets 1 | . 1 . . Max Gunslinging Chain 1 | . 1 . . Shots Hit Robots 79 | . 21 46 12 Core Hits 44 | . 12 27 5 Critical Kills . | . . . . Critical Parts Destroyed . | . . . . Critical Strikes 5 | . 2 3 . Burn 2 | . 2 . . Blast 3 | . . 3 . Melee Attacks 5 | . . . 5 Impact . | . . . . Slashing . | . . . . Piercing . | . . . . Sneak Attacks 5 | . . . 5 Combat Hostiles . | . . . . Follow-up Attacks . | . . . . Damage Inflicted 1775 | . 399 1264 112 Guns 879 | . 288 504 87 Cannons 365 | . . 340 25 Explosions 485 | . 82 403 . Melee . | . . . . Ramming 46 | . 29 17 . Kinetic 956 | . . 844 112 Thermal 369 | . 288 81 . Explosive 404 | . 82 322 . Electromagnetic . | . . . . Impact . | . . . . Slashing . | . . . . Piercing . | . . . . Highest Corruption 1 | . 1 . . Average Corruption 1 | . 1 . . Corruption Purged . | . . . . Corruption Blocked . | . . . . Effects 6 | . 6 . . Message Errors 1 | . 1 . . Matter Fused 1 | . 1 . . Heat Flow Errors 1 | . 1 . . Data Loss (minor) 2 | . 2 . . Alerts 1 | . 1 . . Overload Shots . | . . . . Overflow Damage 2 | . . 2 . Projectiles . | . . . . Explosions 2 | . . 2 . Melee . | . . . . Knockbacks 2 | . . 2 . Impact 1 | . . 1 . Kinetic 1 | . . 1 . Secondary . | . . . . Self-Inflicted Damage 47 | . . 47 . Shots 2 | . . 2 . Rammed . | . . . . Targets Rammed 14 | . 7 7 . Kicked 14 | . 7 7 . Crushed . | . . . . Highest Temperature 411 | . 411 190 106 Average Temperature 106 | . 177 67 62 Received Heat Transfer 674 | . 261 333 80 Effects 2 | . 2 . . Shutdowns 1 | . 1 . . Matter Decay 1 | . 1 . . Siege Activations . | . . . . Martial Activations . | . . . . Shielding Activations . | . . . . Robots Disrupted . | . . . . Combat Hostiles . | . . . . Robots Corrupted . | . . . . Combat Hostiles . | . . . . Parts Fried . | . . . . Impact Corruptions . | . . . . Robots Melted 1 | . 1 . . Combat Hostiles 1 | . 1 . . Parts Melted 1 | . 1 . . Heat Transferred 1049 | . 999 50 . Parts Sabotaged . | . . . . Parts Stolen . | . . . . Parts Stripped . | . . . . Power Chain Reactions . | . . . . Alert | -11 -10 -9 -9 ------- Run | Yrd Mat Mat Min Maximum Alert Level . | . . . . Low Security (%) 100 | 100 100 100 100 Level 1 . | . . . . Level 2 . | . . . . Level 3 . | . . . . Level 4 . | . . . . Level 5 . | . . . . High Security . | . . . . Max Security . | . . . . Peak Influence 172 | . 76 172 60 Initial 55 | . . 27 55 Average 41 | . 36 49 29 Influence Increases 848 | . 268 509 71 Destroy 0b10 Robot/C 440 | . 80 300 60 Destroy 0b10 Robot/NC 20 | . 5 15 . Destroy Leader 114 | . 22 82 10 Successful Hack 17 | . 8 9 . Disable Machine 75 | . 15 60 . Destroy Structure 62 | . 18 43 1 Lose Combat Pursuer 120 | . 120 . . Influence Decreases 847 | . 202 433 212 Entered New Map 126 | . . 39 87 Time Decay 681 | . 182 394 105 Lost Part 40 | . 20 . 20 Squads Dispatched 3 | . 1 2 . Investigation 1 | . . 1 . Extermination . | . . . . Reinforcement 2 | . 1 1 . Assault . | . . . . Garrison . | . . . . Intercept . | . . . . Searches Triggered . | . . . . Construction Impeded . | . . . . Haulers Reinforced . | . . . . Active Scanning Responses . | . . . . Cargo Convoy Interrupts . | . . . . Stealth | -11 -10 -9 -9 --------- Run | Yrd Mat Mat Min Distress Signals 5 | . 3 2 . Communications Jammed . | . . . . Distress Signals . | . . . . Times Spotted 64 | . 13 26 25 Peak Tracking Total 17 | . 5 3 17 Tactical Retreats 9 | . 4 3 2 Traps | -11 -10 -9 -9 ------- Run | Yrd Mat Mat Min Traps Triggered . | . . . . Indirectly . | . . . . Trap Hack Attempts . | . . . . Triggered . | . . . . Disarmed . | . . . . Reprogrammed . | . . . . Reused . | . . . . Traps Extracted . | . . . . Installed . | . . . . Triggered . | . . . . Machines | -11 -10 -9 -9 ---------- Run | Yrd Mat Mat Min Machines Disabled 5 | . 1 4 . Max in Single Turn 2 | . 1 2 . Machines Repaired . | . . . . Machines Dismantled . | . . . . Machines Sabotaged . | . . . . Overloaded Fab Kills . | . . . . Hacking | -11 -10 -9 -9 --------- Run | Yrd Mat Mat Min Machines Accessed 5 | . 3 2 . Terminals 4 | . 3 1 . Fabricators . | . . . . Repair Stations 1 | . . 1 . Recycling Units . | . . . . Scanalyzers . | . . . . Garrison Access . | . . . . Total Hacks 20 | . 11 9 . Successful 11 | . 6 5 . Failed 9 | . 5 4 . Catastrophic . | . . . . Database Lockouts . | . . . . Manual 7 | . 5 2 . Terminals 17 | . 11 6 . Fabricators . | . . . . Repair Stations 3 | . . 3 . Recycling Units . | . . . . Scanalyzers . | . . . . Garrison Access . | . . . . Terminal Hacks 6 | . 4 2 . Record 2 | . 1 1 . Locate Traps 1 | . 1 . . Dispatch Records 1 | . . 1 . Hauler Manifests 1 | . 1 . . Zone Layout 1 | . 1 . . Fabricator Hacks . | . . . . Repair Station Hacks 2 | . . 2 . Scan Component 1 | . . 1 . Repair 1 | . . 1 . Recycling Unit Hacks . | . . . . Scanalyzer . | . . . . Garrison Access Hacks . | . . . . Unauthorized Hacks 3 | . 2 1 . Terminals 3 | . 2 1 . Botnet 3 | . 2 1 . Fabricators . | . . . . Repair Stations . | . . . . Recycling Units . | . . . . Scanalyzers . | . . . . Garrison Access . | . . . . Data Cores Recovered . | . . . . Used . | . . . . Hacking Detections 4 | . 2 2 . Full Trace Events 2 | . 1 1 . Feedback Events 1 | . 1 . . Corruption 1 | . 1 . . Feedback Blocked . | . . . . Robot Schematics Acquired . | . . . . Robots Built . | . . . . Authchips . | . . . . Time . | . . . . Total Robot Build Rating . | . . . . Part Schematics Acquired . | . . . . Parts Built . | . . . . Authchips . | . . . . Time . | . . . . Total Part Build Rating . | . . . . Parts Repaired 1 | . . 1 . Time 25 | . . 25 . Parts Recycled . | . . . . Recycled Matter . | . . . . Retrieved Matter . | . . . . Retrieved Components . | . . . . Parts Scanalyzed . | . . . . Part Schematics Acquired . | . . . . Parts Damaged . | . . . . Bothacking | -11 -10 -9 -9 ------------ Run | Yrd Mat Mat Min Used RIF Installer . | . . . . Robots Hacked 2 | . . . 2 Non-combat 2 | . . . 2 Combat . | . . . . Robot Hacks Applied 3 | . . . 3 parse_system 1 | . . . 1 no_distress 2 | . . . 2 Relay Couplers Released . | . . . . Fabnet Peak Effective % . | . . . . Robots Rewired . | . . . . Allies Hacked . | . . . . Hacks Repelled . | . . . . Allies | -11 -10 -9 -9 -------- Run | Yrd Mat Mat Min Total Allies . | . . . . Largest Group . | . . . . Highest-Rated Group . | . . . . Highest-Rated Ally . | . . . . Total Orders . | . . . . Ally Attacks . | . . . . Total Damage . | . . . . Kills . | . . . . Allies Corrupted . | . . . . Allies Melted . | . . . . Intel | -11 -10 -9 -9 ------- Run | Yrd Mat Mat Min Active Infowar (turns) 1295 | . . 1054 241 ECM 1295 | . . 1054 241 Robot Analysis Total . | . . . . Derelict Logs Recovered . | . . . . Drone Launches . | . . . . Drone Recoveries . | . . . . Exploration | -11 -10 -9 -9 ------------- Run | Yrd Mat Mat Min Turns Passed 2007 | 90 508 1168 241 Spaces Moved 1019 | 74 354 483 108 Core 16 | 16 . . . Treads . | . . . . Legs 1003 | 58 354 483 108 Wheels . | . . . . Hover . | . . . . Flight . | . . . . Fastest Speed 50 | 50 120 120 190 Average Speed 159 | 108 120 189 190 Slowest Speed 190 | 120 120 190 190 Overloaded Moves . | . . . . Propulsion Burnouts . | . . . . Robots Hopped . | . . . . Potential Cave-ins . | . . . . Cave-ins Triggered . | . . . . Exploration Rate (%) 30 | 4 48 33 36 Regions Visited 3 Branch Regions 1 Pre-discovered Areas . | . . . . Known Exits Taken . | . . . . Unknown Exits Taken 3 | 1 1 1 . Scrap Searched . | . . . . Spaces Dug . | . . . . Terrain Destroyed 70 | . 18 51 1 Melee . | . . . . Projectile 7 | . . 6 1 AOE 63 | . 18 45 . Terrain Rammed . | . . . . Walls Destroyed . | . . . . Machines Disabled . | . . . . Actions | -11 -10 -9 -9 --------- Run | Yrd Mat Mat Min Total 1256 | 81 399 647 129 Wait 51 | . 7 44 . Move 1016 | 73 353 482 108 Hop . | . . . . Pick Up 22 | 3 3 16 . Fast Attach 11 | 5 2 4 . Attach 4 | . 2 1 1 Detach 2 | . . 2 . Swap 24 | . 3 20 1 Drop 26 | . 4 19 3 Fire 81 | . 18 52 11 Melee 5 | . . . 5 Ram . | . . . . Kick 14 | . 7 7 . Crush . | . . . . Escape Stasis . | . . . . Rewire . | . . . . Trap . | . . . . Miscellaneous . | . . . . Route ------- -11/Scrapyard -10/Materials (discovered 2 exits: *Mat / [*Min]) -9/Materials -9/Mines History --------- Turn | Location | Event 19 | -11/Scrapyard | Discovered new exit (range 16) 91 | -11/Scrapyard | Entered Materials 153 | -10/Materials | Discovered new exit (range 12) 320 | -10/Materials | Build established: Mutant 586 | -10/Materials | Discovered new exit (range 8) 599 | -10/Materials | Entered another Materials area 599 | -9/Materials | Evolved 2 slots: Power x1, Utility x1 943 | -9/Materials | Repaired Imp. Assault Rifle 1624 | -9/Materials | Build established: Scavenger-Mutant 1721 | -9/Materials | Discovered new exit (range 13) 1767 | -9/Materials | Entered Mines 1854 | -9/Mines | Met a Derelict bent on vengeance 1933 | -9/Mines | Received a Rocket Launcher from a helpful Derelict 1986 | -9/Mines | Assembled infested the area 1991 | -9/Mines | Assisted by a Guerilla fighting off Assembled 2008 | -9/Mines | Self-destructed Last Messages --------------- of Assembled to figure out where they're coming from, and they're closing on this area, come on!" K-01 Serf collects debris. HV Slug penetrates as-11943. as-11943 suffers critical hit (Destroy). as-11943 destroyed. as-22545 suffers critical hit (Destroy). as-22545 knocked back. K-01 Serf collects debris. as-51873 destroyed. PO-YXU(h) destroyed. K-01 Serf collects debris. Aluminum Leg destroyed. as-47971 destroyed. K-01 Serf collects debris. as-00462 destroyed. K-01 Serf collects debris. as-20563 destroyed. K-01 Serf collects debris. Map ----- +----------------------------------------------------+ | ?????????????????????????????????????????????????? | | ?????????????????????????????????????????????????? | | ?????????????????????????????????????????????????? | | ?????????????????????????????????????????????????? | | ?????????????????????????????????????????????????? | | ##???????????????????????????????????????????????? | | ???????????????????????????????????????????????? | | #???????????????????????????????????????????????? | | #???????????????????????????????????????????????? | | #???????????????????????????????????????????????? | | #??????????##???????????????????????????????????? | | ########## ##?????????????????????????????????? | | ##????????????????????????????????? | | ???? ###??????????????????????????????? | | #?????????? ##????????????????? ??????????? | | #??????????# #???????????????? ??????????? | | ##?????????## #??????????????? #??????????? | | ##????????### #?????????????? #???????????? | | ????????### #????????????? % #????????????? | | ???????## #?????????????% #?????????????? | | #####??# #??###??????? %a ##????????????? | | #??# [ #### ##?????#aaa #????????????? | | #??## [ ** ## #??###a% #????????????? | | ## #???##= ###; aa%a #????????????? | | ?# #???## k % a #?????????????? | | ?# #??##==* k@% aa ##?????????????? | | ?# #?## #### #??????????????? | | ?# ### ##???# ##??????????????? | | ## ## ##????? ##???????????????? | | ## #??????? ##????????????????? | | # ] #??????? #?????????????????? | | ###### ## ???????#?????????????????? | | ##????##### ????????????????????????? | | #?????????# ???????????????????????? | | #?????????## #???????????????????????? | | ##?????????## #???????????????????????? | | ##??########### ???????????????????????? | | #??# #??## ## #???????????????????????? | | #### """#???####?# ?????????????????????????? | | """#?????????#??????????????????????????? | | """#????????????????????????????????????? | | ##### #????????????????????????????????????? | | ##???# """#????????????????????????????????????? | | ?????# """#????????????????????????????????????? | | ?????# """#????????????????????????????????????? | | ?????# #????????????????????????????????????? | | ?????########????????????????????????????????????? | | ?????????????????????????????????????????????????? | | | | | +----------------------------------------------------+ Best States ------------- Heat Dissipation 28 Energy Generation 17 Energy Capacity 415 Matter Stores 300 Matter Capacity 300 Sight Range 16 Terrain Scan Density 10 ECM Strength 1 Armor Coverage 450 Power Shielding 33 Evasion (%) 55 Item Schematics ----------------- None Robot Schematics ------------------ None Fabricated ------------ Nothing Repaired ---------- Imp. Assault Rifle | 92% | -9/Materials Alien Tech Used ----------------- None Achievements -------------- None Challenges ------------ None Game ------ Seed SpliceCatalystGun Manual? 0 Play Time 00:25:28 Cumulative 12.1 hours Start 2025.09.01 @ 15:42:41 End 2025.09.01 @ 16:06:16 Sessions 1 Manual Loads 0 Difficulty Rogue Special Mode None Game No. 27 Rogue 26 Adventurer 1 Explorer 0 Win Type - Total 0 Types 0/0/0/0/0/0/0/0/0/0 Lore% 5 Gallery% 15 Achievement% 17 Wizard Run 0 Options --------- Layout 1 ASCII 0 Keyboard 0 Movement Numpad Keybinds 0 Fullscreen 1 Font 24/Smallcaps Map View 50x35 Zoom Use 0% Tactical HUD 0 Map Filters NONE Filters NONE Steam 1 RUN: 3483caac-3ed3-4fda-956e-da5ccba4ab5f